bitfinex/quotes_ETHUSD_20210701
["timestamp","ask_amount","ask_price","bid_price","bid_amount"]
[1625130970992,5.01,2121.1,2120.7,0.24489226]
[1625130971149,12.63453812,2120.9,2120.7,2.26e-06]
[1625130971234,12.63453812,2120.9,2120.0,0.03]
[1625130971235,33.52734242,2120.8,2120.0,0.03]
[1625130971337,33.71556223,2120.8,2120.0,0.03]
[1625130971439,2.8,2120.2,2120.0,0.03]
[1625130971538,6.2124,2120.2,2120.0,0.03]
[1625130971848,3.4124,2120.2,2120.0,0.03]
[1625130972636,2.8196,2120.3,2120.0,2.07470764]
[1625130972735,4.84874523,2120.7,2120.0,7.08470764]
[1625130972839,7.07134,2120.9,2120.0,2.07470764]
[1625130972935,7.07134,2120.9,2120.2,5.01]
[1625130973039,7.07134,2120.9,2120.0,4.18596066]
[1625130973141,7.07134,2120.9,2120.2,5.01]
[1625130973770,9.42886,2121.0,2120.2,5.01]
[1625130973870,10.60648,2121.2,2120.2,5.01]
[1625130973974,5.01,2120.7,2120.3,0.08]
[1625130974171,5.55136518,2121.1,2120.0,4.18596066]
[1625130974375,5.55136518,2121.1,2119.4,5.01]
[1625130974774,5.01,2120.9,2119.4,5.01]
[1625130974875,7.07308,2120.4,2119.4,5.01]
[1625130974974,11.42698,2120.4,2119.4,5.01]
[1625130975075,16.80221974,2120.4,2119.4,5.01]
[1625130975277,11.42698,2120.4,2119.4,5.01]
[1625130975733,4.3539,2120.4,2119.5,2.18904286]
[1625130976132,4.3539,2120.4,2119.6,2.11125302]
[1625130976229,7.07217,2120.8,2119.6,2.11125302]
[1625130976331,7.07217,2120.8,2119.7,5.07]
[1625130976435,5.38641616,2120.7,2119.7,2.11802962]
[1625130976531,5.8689577,2121.0,2119.7,2.11802962]
[1625130976629,10.8789577,2121.0,2119.7,2.05802962]
[1625130976738,5.01,2120.9,2119.5,0.01433522]
[1625130976833,5.01,2120.8,2119.5,0.01433522]
[1625130976932,10.43845812,2120.8,2119.5,0.01433522]
[1625130977033,10.71727829,2120.8,2119.5,0.01433522]
[1625130977127,28.1,2120.7,2119.4,0.27713074]
[1625130977328,28.1,2120.7,2119.3,0.01119358]
[1625130977529,2.3658,2120.9,2119.3,0.01119358]
[1625130977629,2.3658,2120.9,2119.3,2.0692232]
[1625130977730,2.3658,2120.9,2120.8,4.18611617]
[1625130977869,2.3658,2120.9,2119.4,0.14]
[1625130977970,1.0951,2120.9,2119.4,0.14]
[1625130978069,5.70789955,2121.0,2119.4,0.14]
[1625130978170,7.07157,2120.9,2119.5,11.24085264]
[1625130978370,7.07157,2120.9,2119.5,11.44085264]
[1625130978470,7.07157,2120.9,2119.6,0.14]
[1625130978572,5.47429221,2121.0,2119.7,5.01]
[1625130978673,7.07216,2121.2,2119.7,5.01]
[1625130978771,7.07216,2121.2,2119.7,7.12125302]
[1625130978875,7.07216,2121.2,2119.7,9.17372149]
[1625130978984,10.6022,2121.4,2119.8,4.98849106]
[1625130979078,11.78757,2121.5,2119.8,6.05201143]
[1625130979175,11.78757,2121.5,2119.9,0.02712869]
[1625130979279,0.9,2121.2,2119.9,0.02712869]
[1625130979378,0.9,2121.2,2120.0,9.5280239]
[1625130979479,0.9,2121.2,2120.1,5.01]
[1625130979675,7.97073,2121.2,2120.2,5.01]
[1625130980127,7.97073,2121.2,2119.8,5.21211486]
[1625130980225,7.97073,2121.2,2120.0,5.01]
[1625130980528,7.97073,2121.2,2119.9,5.01]
[1625130980625,7.97073,2121.2,2119.8,5.01]
[1625130980626,12.10273,2121.2,2119.8,5.01]
[1625130980779,17.68318478,2121.2,2119.7,5.01]
[1625130980878,5.01,2121.0,2119.7,5.01]
[1625130981079,10.51555938,2121.0,2119.3,4.94809594]
[1625130981277,5.01,2120.9,2119.3,4.94809594]
[1625130981379,5.50555938,2121.0,2119.3,4.94809594]
[1625130981478,5.50555938,2121.0,2119.3,2.63524212]
[1625130981577,5.50555938,2121.0,2119.3,2.1224466]
[1625130981679,5.01,2120.8,2119.3,2.1224466]
[1625130981884,7.07305,2120.5,2119.3,0.01119358]
[1625130981983,9.4439,2120.5,2119.3,0.01119358]
[1625130982081,5.79470881,2120.4,2119.3,0.01119358]
[1625130982624,10.8603,2120.5,2119.3,0.01119358]
[1625130982625,5.01,2120.2,2119.3,0.01119358]
[1625130982724,16.39285403,2120.5,2119.3,0.01119358]
[1625130983122,11.38285403,2120.5,2119.3,0.01119358]
[1625130983225,7.07512,2119.9,2119.3,0.01119358]
[1625130983327,10.62412,2119.9,2119.3,0.01119358]
[1625130983624,3.549,2119.9,2119.3,0.01119358]
[1625130984770,3.549,2119.9,2119.3,5.02119358]
[1625130984871,7.0733,2120.5,2119.3,5.02119358]
[1625130984971,7.0733,2120.5,2119.4,0.06]
[1625130985074,7.0733,2120.5,2119.5,5.01]
[1625130985272,7.0733,2120.5,2119.6,5.39618354]
[1625130985375,14.44074,2120.8,2119.6,5.39618354]
[1625130985577,7.07261,2120.9,2119.6,5.39618354]
[1625130985677,30.6551,2121.2,2119.6,5.39618354]
[1625130985775,20.2765,2121.2,2119.9,0.01460426]
[1625130985877,10.1661,2121.2,2120.0,0.03100447]
[1625130986085,10.1874,2121.8,2120.2,0.1229794]
[1625130986180,10.1874,2121.8,2120.2,6.29630771]
[1625130986276,9.9518,2121.9,2120.2,6.29630771]
[1625130986373,3.53549,2121.7,2120.5,0.04984682]
[1625130986479,21.73906,2121.9,2120.5,9.89715551]
[1625130986582,7.06917,2122.0,2120.5,9.88044387]
[1625130986680,7.06917,2122.0,2120.7,5.01]
[1625130986777,10.926,2122.2,2120.8,6.16586891]
[1625130986893,10.926,2122.2,2120.8,5.98473065]
[1625130987083,10.926,2122.2,2121.0,5.01]
[1625130987185,10.926,2122.2,2121.1,5.80225155]
[1625130987281,4.2,2122.3,2121.1,5.82912138]
[1625130987383,10.2825,2122.5,2121.4,5.5372251]
[1625130987481,11.78332,2122.7,2121.4,5.47305993]
[1625130987684,7.06819,2122.2,2121.4,5.4566291]
[1625130987783,7.06819,2122.2,2121.5,0.01005438]
[1625130987885,7.06819,2122.2,2121.4,5.4566291]
[1625130988185,7.06819,2122.2,2121.2,5.01]
[1625130988386,11.78332,2122.7,2121.2,5.01]
[1625130988589,11.78332,2122.7,2121.2,7.62578802]
[1625130989143,0.9,2122.2,2121.3,5.01]
[1625130989240,4.6134,2122.2,2121.2,7.62578802]
[1625130989445,4.6134,2122.2,2121.2,5.01]
[1625130989547,10.10211617,2122.2,2120.6,16.81034196]
[1625130989650,4.6134,2122.2,2120.6,10.5796]
[1625130989749,10.05557496,2122.2,2120.5,9.42385]
[1625130989848,10.11807234,2122.2,2120.6,5.90921947]
[1625130989941,10.11807234,2122.2,2120.5,9.42385]
[1625130990141,25.11807234,2122.2,2120.3,23.82799891]
[1625130990244,7.06995,2121.7,2120.3,23.53218802]
[1625130990343,11.42435,2121.7,2120.3,2.61578802]
[1625130990529,5.2685,2121.7,2120.2,5.85047774]
[1625130990723,5.53624319,2121.6,2120.1,19.94375]
[1625130990827,5.53624319,2121.6,2120.1,9.42545]
[1625130990925,10.2785,2121.7,2120.1,15.31015289]
[1625130991226,5.01,2121.5,2120.1,15.31015289]
[1625130991397,5.01,2121.5,2120.1,9.42545]
[1625130991500,12.08056,2121.5,2120.1,9.32545]
[1625130991603,5.01,2121.4,2120.1,9.32545]
[1625130991799,5.01,2121.4,2120.1,11.94123802]
[1625130992001,7.07056,2121.5,2120.1,11.94123802]
[1625130992504,7.07056,2121.5,2120.3,5.01]
[1625130993002,7.07056,2121.5,2120.4,5.64034349]
[1625130993205,7.07056,2121.5,2120.6,5.01]
[1625130993306,7.07056,2121.5,2120.7,5.01549084]
[1625130993401,7.07056,2121.5,2120.6,5.01]
[1625130993504,7.07056,2121.5,2120.7,5.18377227]
[1625130993722,7.07056,2121.5,2120.6,5.01]
[1625130993824,7.07056,2121.5,2120.7,4.99332617]
[1625130994022,4.3544,2121.7,2120.7,4.99332617]
[1625130994124,7.06977,2121.8,2120.7,4.99332617]
[1625130994222,7.06977,2121.8,2120.6,5.01]
[1625130994223,25.09479,2122.3,2120.6,5.01]
[1625130994324,24.9749,2122.2,2120.7,5.01]
[1625130994427,14.4027,2122.2,2120.7,7.62578802]
[1625130994673,14.4027,2122.2,2120.7,15.62578802]
[1625130994925,14.4027,2122.2,2120.8,5.7816624]
[1625130995123,14.4027,2122.2,2121.0,5.01]
[1625130995225,14.4027,2122.2,2121.1,5.19313489]
[1625130995324,14.4027,2122.2,2121.1,5.20905459]
[1625130995424,3.7134,2122.2,2121.1,5.20905459]
[1625130995524,2.6596,2122.3,2121.1,5.20905459]
[1625130995624,2.6596,2122.3,2121.3,5.01]
[1625130995625,1.4799,2122.3,2121.3,5.01]
[1625130995730,7.06869,2122.6,2121.4,5.3831252]
[1625130995880,7.06869,2122.6,2121.4,5.37699756]
[1625130996023,3.53434,2122.6,2121.2,6.06414742]
[1625130996125,3.53434,2122.6,2121.4,5.01]
[1625130996327,3.53434,2122.6,2121.5,5.49488888]
[1625130996425,3.53434,2122.6,2121.7,5.01]
[1625130996523,14.0669,2122.8,2121.8,5.94026466]
[1625130996724,14.0669,2122.8,2121.7,1.0608]
[1625130996925,4.1,2122.8,2121.7,1.0608]
[1625130997524,9.58928493,2122.8,2121.7,1.0608]
[1625130997631,16.65507493,2122.8,2121.7,1.0608]
[1625130997725,16.65507493,2122.8,2121.0,10.0527]
[1625130997833,0.06,2122.7,2121.0,10.0527]
[1625130997926,3.53379,2122.5,2120.9,5.01]
[1625130998031,5.75395926,2122.4,2120.8,10.70114066]
[1625130998134,5.01,2122.3,2120.8,10.3928]
[1625130998232,10.83422666,2122.2,2120.8,10.3928]
[1625130998333,5.01,2122.1,2120.6,10.9241]
[1625130998433,5.01,2122.1,2120.5,2.61578802]
[1625130998532,5.5000729,2122.0,2120.5,2.61578802]
[1625130998636,10.5100729,2122.0,2120.5,2.61578802]
[1625130998737,7.06992,2121.3,2120.5,2.61578802]
[1625130999035,4.27922833,2121.3,2120.5,2.61578802]
[1625130999339,3.9638,2121.6,2120.5,2.61578802]
[1625130999441,3.9638,2121.6,2120.5,4.82198571]
[1625130999537,3.9638,2121.6,2120.6,0.06]
[1625130999737,3.9638,2121.6,2120.6,7.12848]
[1625130999839,3.53401,2122.0,2120.7,4.82198571]
[1625130999937,3.53401,2122.0,2120.8,5.01]
[1625131000041,3.53401,2122.0,2120.9,5.01]
[1625131000235,3.53401,2122.0,2120.9,7.62578802]
[1625131000583,3.53401,2122.0,2120.9,15.62578802]
[1625131000687,8.96367086,2122.0,2120.9,5.01]
[1625131000786,7.06884,2121.7,2120.9,5.01]
[1625131001187,7.06884,2121.7,2120.3,9.72936015]
[1625131001291,5.61290914,2121.6,2120.3,9.72936015]
[1625131001389,5.37917506,2121.6,2120.0,9.93922184]
[1625131001489,5.50428317,2121.6,2120.0,9.93922184]
[1625131001587,3.53529,2121.3,2120.0,0.51254184]
[1625131001691,15.07023098,2121.3,2120.0,0.51254184]
[1625131001792,15.07023098,2121.3,2120.2,6.85]
[1625131001889,7.07153,2120.9,2120.2,6.85]
[1625131001991,9.4287,2121.1,2120.2,6.85]
[1625131002090,8.94572187,2121.0,2120.2,6.85]
[1625131002194,5.01,2120.9,2120.2,6.85]
[1625131002294,5.01,2120.8,2120.2,6.85]
[1625131002390,14.00343417,2120.8,2119.7,10.9797]
[1625131002492,14.00343417,2120.8,2119.6,7.60851921]
[1625131002635,3.53714,2120.3,2119.6,0.75851921]
[1625131002739,9.50324,2120.3,2119.6,0.75851921]
[1625131002841,9.50324,2120.3,2119.6,0.51254184]
[1625131003038,7.0742,2120.2,2119.1,9.68952802]
[1625131003141,12.55976193,2120.2,2119.1,9.68952802]
[1625131003243,12.61567734,2120.2,2119.1,9.68952802]
[1625131003440,12.61567734,2120.2,2119.1,2.61578802]
[1625131003734,7.0742,2120.2,2119.1,2.61578802]
[1625131003838,12.50310784,2120.2,2119.1,2.61578802]
[1625131004038,7.0742,2120.2,2119.1,2.61578802]
[1625131005095,15.1023,2120.3,2119.1,2.61578802]
[1625131005194,4.54024,2120.3,2119.2,3.6811]
[1625131005293,5.50776425,2120.6,2119.3,2.6269816]
[1625131005657,9.43237,2120.7,2119.3,2.6269816]
[1625131005759,9.43237,2120.7,2119.3,14.2072116]
[1625131005760,7.07264,2120.6,2119.3,14.2072116]
[1625131005866,12.96879,2120.7,2119.5,5.01]
[1625131005867,3.53642,2120.7,2119.5,5.01]
[1625131006210,3.53642,2120.7,2119.5,7.62578802]
[1625131006309,3.53642,2120.7,2119.5,9.83198571]
[1625131006407,3.53642,2120.7,2119.5,17.83198571]
[1625131007171,3.53642,2120.7,2119.9,7.07156]
[1625131007570,3.53642,2120.7,2119.8,5.01]
[1625131008272,7.07313,2120.5,2119.6,9.42933]
[1625131008572,7.07313,2120.5,2119.5,12.04557802]
[1625131009285,10.61001,2120.5,2119.5,2.61578802]
[1625131009411,7.07392,2120.2,2119.5,2.61578802]
[1625131009613,2.88636689,2120.2,2119.7,5.01]
[1625131009712,2.88636689,2120.2,2119.5,2.61578802]
[1625131009809,2.88636689,2120.2,2119.3,0.01119358]
[1625131009810,8.39154,2120.2,2119.3,0.01119358]
[1625131009908,2.88636689,2120.2,2119.3,0.01119358]
[1625131010210,2.88636689,2120.2,2119.0,5.01]
[1625131010410,8.23829603,2120.2,2118.8,12.29408793]
[1625131010911,3.53756,2120.0,2118.8,14.50028562]
[1625131011010,6.69296,2120.0,2119.0,7.07464]
[1625131011209,12.0730152,2120.0,2119.0,7.07464]
[1625131011510,6.69296,2120.0,2119.0,7.07464]
[1625131011656,6.69296,2120.0,2119.0,5.01]
[1625131011749,12.16602334,2120.0,2119.0,5.01]
[1625131012050,12.16602334,2120.0,2118.8,14.25430571]
[1625131012748,6.69296,2120.0,2118.8,14.25430571]
[1625131012948,12.12755868,2120.0,2118.8,14.25430571]
[1625131013052,12.15067619,2120.0,2118.8,14.25430571]
[1625131013151,12.15067619,2120.0,2118.8,4.82198571]
[1625131013251,12.15067619,2120.0,2118.7,10.338]
[1625131013351,5.01,2119.8,2118.6,16.8841]
[1625131013461,5.56071193,2119.7,2118.6,6.85]
[1625131013996,1.0873,2119.8,2118.6,6.85]
[1625131014095,0.9844,2119.9,2118.6,6.85]
[1625131014197,5.61306594,2119.8,2118.6,6.85]
[1625131014300,7.07615,2119.6,2118.7,0.14]
[1625131014499,6.43440519,2119.5,2118.2,0.24598827]
[1625131014603,10.12273018,2119.5,2118.2,0.24598827]
[1625131014696,9.96467464,2119.5,2118.2,0.24598827]
[1625131014797,0.10972508,2119.4,2118.2,0.24598827]
[1625131014996,0.15,2119.3,2118.2,0.24598827]
[1625131015098,0.1647005,2119.3,2118.1,22.5437939]
[1625131015296,5.66382192,2119.3,2118.1,12.4256939]
[1625131015398,10.67382192,2119.3,2118.1,12.4256939]
[1625131015495,5.29570308,2119.3,2118.1,12.4256939]
[1625131015701,0.1647005,2119.3,2118.1,12.4256939]
[1625131015797,0.15,2119.3,2118.1,12.4256939]
[1625131015901,7.07842,2119.0,2118.1,12.4256939]
[1625131016000,12.12442,2119.0,2118.1,2.0195939]
[1625131016760,12.12442,2119.0,2118.2,5.01]
[1625131017159,12.12442,2119.0,2118.1,2.0195939]
[1625131017664,12.12442,2119.0,2118.1,1.4397979]
[1625131017761,12.12442,2119.0,2118.2,5.01]
[1625131017860,5.046,2119.0,2118.2,5.01]
[1625131017964,3.53902,2119.3,2118.2,5.01]
[1625131018062,3.53902,2119.3,2118.3,0.12]
[1625131018162,3.53902,2119.3,2118.3,5.13]
[1625131018264,3.53902,2119.3,2118.3,10.16564288]
[1625131018404,20.46299,2119.7,2118.5,5.01]
[1625131018510,9.58749,2119.7,2118.5,5.01]
[1625131018609,0.15,2119.7,2119.3,0.44]
[1625131018709,10.1153,2119.8,2119.3,0.44]
[1625131018808,10.9119,2120.3,2119.3,0.44]
[1625131018906,6.0483,2120.6,2119.4,5.01]
[1625131019509,6.0483,2120.6,2119.3,5.47564288]
[1625131019710,7.0745,2120.1,2119.3,0.44]
[1625131020305,0.15,2120.0,2119.3,0.44]
[1625131020770,5.16,2120.0,2119.3,0.44]
[1625131020772,5.01,2119.8,2119.3,0.44]
[1625131020958,8.54798,2119.9,2119.3,0.44]
[1625131021057,7.07637,2119.7,2119.3,0.44]
[1625131021160,8.54798,2119.9,2119.3,0.44]
[1625131021257,3.53798,2119.9,2119.3,0.44]
[1625131021359,5.01,2120.4,2119.3,0.44]
[1625131021457,8.54712,2120.4,2119.3,0.44]
[1625131021657,3.53712,2120.4,2119.3,0.44]
[1625131021858,3.53712,2120.4,2119.3,5.45]
[1625131022261,3.53712,2120.4,2119.3,13.45]
[1625131022262,10.61049,2120.4,2119.3,13.45]
[1625131022364,3.537,2120.5,2119.3,11.57964288]
[1625131022465,10.5153,2120.7,2119.3,39.57964288]
[1625131022564,10.5153,2120.7,2119.4,0.29332908]
[1625131022662,10.536,2121.0,2119.4,8.47332908]
[1625131022764,3.53614,2121.1,2119.4,8.47332908]
[1625131022860,3.53614,2121.1,2119.6,5.01]
[1625131023000,8.96974708,2121.1,2119.6,8.0461]
[1625131023192,8.96974708,2121.1,2119.7,5.01]
[1625131023389,8.96974708,2121.1,2119.8,5.01]
[1625131023638,3.53614,2121.1,2119.8,5.01]
[1625131023739,7.07243,2120.8,2119.8,5.01]
[1625131023839,7.07243,2120.8,2119.9,5.01]
[1625131024243,3.53614,2121.1,2120.0,5.01]
[1625131024638,3.53614,2121.1,2120.1,5.01]
[1625131024740,3.53614,2121.1,2120.1,8.5987]
[1625131024943,3.53614,2121.1,2120.1,16.5987]
[1625131025051,10.60683,2121.3,2120.1,16.5987]
[1625131025686,0.15,2121.4,2120.1,16.5987]
[1625131025785,0.15,2121.4,2120.2,0.08]
[1625131026185,0.15,2121.4,2120.1,16.5987]
[1625131026285,7.21984,2121.4,2120.2,7.06991]
[1625131026385,7.21984,2121.4,2120.4,5.01]
[1625131026487,7.21984,2121.4,2120.1,16.5987]
[1625131026488,3.53521,2121.2,2120.1,13.01]
[1625131027185,3.53583,2120.7,2120.1,13.01]
[1625131027633,7.07169,2120.5,2120.1,13.01]
[1625131027738,7.07169,2120.5,2119.7,2.51019769]
[1625131028137,7.07169,2120.5,2119.5,2.52544519]
[1625131028938,7.07288,2120.1,2119.5,2.52544519]
[1625131029452,3.53699,2120.0,2118.9,23.30719769]
[1625131029545,13.22855442,2120.0,2118.9,2.51019769]
[1625131029753,13.22855442,2120.0,2118.7,13.44964519]
[1625131029756,13.22855442,2120.0,2118.7,2.52544519]
[1625131029851,13.33624059,2120.0,2118.7,2.52544519]
[1625131029949,13.35742997,2120.0,2118.7,2.52544519]
[1625131030245,0.15,2119.9,2118.7,2.52544519]
[1625131030444,3.53771,2119.7,2118.7,2.02544519]
[1625131030549,1.2922,2119.5,2118.7,2.02544519]
[1625131030651,4.7074,2119.5,2118.5,0.24604627]
[1625131031644,4.7074,2119.5,2118.5,2.72982479]
[1625131031746,3.4152,2119.5,2118.5,2.72982479]
[1625131031988,10.61404,2119.3,2118.5,2.72982479]
[1625131032383,0.74470133,2119.3,2118.5,2.48377852]
[1625131032483,0.74470133,2119.3,2118.2,2.34928573]
[1625131032583,0.74470133,2119.3,2118.1,3.40552671]
[1625131032684,0.74470133,2119.3,2117.9,19.69778556]
[1625131032783,0.15482433,2119.2,2117.9,19.69778556]
[1625131032885,0.01591134,2119.2,2118.0,0.08]
[1625131032984,0.12692581,2119.2,2118.1,2.48377852]
[1625131033082,0.75942506,2119.3,2118.1,2.48377852]
[1625131033182,7.0767,2119.1,2118.2,7.07643]
[1625131033384,7.0767,2119.1,2118.2,11.05852508]
[1625131033482,7.0767,2119.1,2118.2,11.08197854]
[1625131033589,7.0767,2119.1,2118.2,11.1291231]
[1625131033690,0.74470133,2119.3,2118.4,5.01]
[1625131033783,0.11501251,2119.6,2118.4,9.9701]
[1625131033885,9.43317,2119.7,2118.4,17.9701]
[1625131033984,9.43317,2119.7,2118.4,19.1562]
[1625131034085,9.43317,2119.7,2118.4,21.63997852]
[1625131034356,7.07533,2119.5,2118.4,21.63997852]
[1625131034450,7.07533,2119.5,2118.6,7.07524]
[1625131034750,7.07533,2119.5,2118.7,0.08]
[1625131034851,3.53766,2119.9,2118.7,0.08]
[1625131034852,10.6002,2120.0,2118.7,0.08]
[1625131035003,0.15,2120.1,2118.6,1.5125]
[1625131035201,0.15,2120.1,2118.7,4.25583088]
[1625131035303,0.15,2120.1,2118.7,6.72428502]
[1625131035403,0.15,2120.1,2118.7,6.22428502]
[1625131035500,0.15,2120.1,2118.7,2.48377852]
[1625131035671,0.15,2120.1,2118.7,10.48377852]
[1625131035768,7.07445,2120.0,2118.9,7.07451]
[1625131035872,3.53766,2119.9,2118.9,3.1001]
[1625131035969,7.07445,2120.0,2118.9,3.1001]
[1625131036070,10.1835,2120.3,2118.9,3.1001]
[1625131036169,10.1835,2120.3,2119.0,2.48377852]
[1625131036272,10.1835,2120.3,2119.0,3.43365605]
[1625131036372,11.79218,2120.6,2119.1,20.0]
[1625131036538,11.79218,2120.6,2119.2,0.02965619]
[1625131036637,11.79218,2120.6,2119.1,32.8936567]
[1625131036937,3.53694,2120.4,2119.2,0.00861651]
[1625131037037,3.53694,2120.4,2119.1,35.37743522]
[1625131037342,10.61015,2120.4,2119.5,7.07272]
[1625131037437,10.61015,2120.4,2119.5,10.57482]
[1625131037438,0.08,2120.3,2119.5,10.57482]
[1625131037741,10.61015,2120.4,2119.5,10.57482]
[1625131038139,3.53694,2120.5,2119.5,10.57482]
[1625131038339,10.60985,2120.5,2119.5,10.57482]
[1625131038861,3.53694,2120.5,2119.5,3.5021]
[1625131038961,3.53694,2120.5,2119.1,6.02013522]
[1625131039064,0.04,2120.4,2119.1,6.02013522]
[1625131039267,3.53694,2120.5,2119.1,2.48377852]
[1625131039365,0.9,2120.5,2119.1,6.02013522]
[1625131039566,7.07358,2120.3,2119.4,7.07334]
[1625131040815,7.07358,2120.3,2119.5,0.98400349]
[1625131041152,7.07358,2120.3,2119.4,7.07334]
[1625131043527,7.07358,2120.3,2119.6,5.01]
[1625131046353,7.07358,2120.3,2119.4,8.0]
[1625131046456,5.01,2120.1,2119.0,9.43157]
[1625131046557,5.31564706,2120.0,2118.3,16.01662918]
[1625131046656,10.32564706,2120.0,2118.3,12.71662918]
[1625131046755,0.13172164,2119.9,2118.6,10.4174]
[1625131046856,0.15,2119.9,2118.6,10.4174]
[1625131046957,0.15,2119.9,2118.7,9.43267]
[1625131047057,0.26329168,2119.9,2118.7,9.43267]
[1625131047156,3.53801,2119.8,2118.4,17.4775]
[1625131047256,5.53486758,2119.7,2118.5,0.24600087]
[1625131047358,3.32854308,2119.7,2118.5,0.24600087]
[1625131047656,7.07634,2119.4,2118.5,7.07611]
[1625131047966,4.28291424,2119.4,2118.5,7.07611]
[1625131048663,4.28291424,2119.4,2118.7,5.01]
[1625131050015,3.53817,2119.5,2118.8,5.01]
[1625131050314,3.53817,2119.5,2118.6,5.01]
[1625131050709,3.53817,2119.5,2118.7,2.48377852]
[1625131050904,3.53801,2119.8,2118.7,2.48377852]
[1625131051017,10.61301,2119.8,2118.7,2.48377852]
[1625131051105,10.61301,2119.8,2118.8,1.4048]
[1625131051208,9.0,2119.9,2118.8,1.4048]
[1625131051308,9.0,2119.9,2118.8,2.5473]
[1625131052538,9.0,2119.9,2118.8,5.03107852]
[1625131052640,16.07472,2119.9,2118.8,11.91670852]
[1625131052741,16.07472,2119.9,2118.8,19.91670852]
[1625131052839,0.1,2119.8,2118.8,19.91670852]
[1625131053140,16.07472,2119.9,2118.8,19.91670852]
[1625131054245,7.07536,2119.7,2118.9,7.07495]
[1625131054545,7.07536,2119.7,2118.8,19.91670852]
[1625131054799,10.61331,2119.7,2118.8,19.91670852]
[1625131054996,3.53795,2119.7,2118.8,10.48377852]
[1625131055195,3.53795,2119.7,2118.6,0.24602754]
[1625131055295,7.07638,2119.4,2118.6,7.32199754]
[1625131055646,10.61481,2119.4,2118.6,0.24602754]
[1625131055748,3.53843,2119.4,2118.6,0.24602754]
[1625131056144,3.52171976,2119.4,2118.6,0.24602754]
[1625131056246,3.52171976,2119.4,2118.5,6.85]
[1625131056446,7.07703,2119.2,2118.5,6.85]
[1625131057525,3.52171976,2119.4,2118.5,6.85]
[1625131057628,10.59813976,2119.4,2118.5,13.9265]
[1625131057725,3.52171976,2119.4,2118.5,13.9265]
[1625131057826,3.52171976,2119.4,2118.5,21.9265]
[1625131058330,3.52171976,2119.4,2118.5,15.0765]
[1625131058529,3.52171976,2119.4,2118.5,7.0765]
[1625131059050,7.06003976,2119.4,2118.5,7.0765]
[1625131059151,7.06003976,2119.4,2118.5,9.56027852]
[1625131059250,5.59864893,2119.8,2118.5,9.56027852]
[1625131059453,16.07472,2119.9,2118.5,9.56027852]
[1625131059552,9.0,2119.9,2118.5,9.56027852]
[1625131059655,3.53756,2119.8,2118.9,3.5373579]
[1625131059754,3.53756,2119.8,2118.9,7.9279579]
[1625131059851,3.53756,2119.8,2118.9,15.9279579]
[1625131059954,9.0,2119.9,2118.9,12.3906]
[1625131060053,9.0,2119.9,2119.4,7.07366]
[1625131060152,9.0,2119.9,2119.4,11.32706]
[1625131060252,9.0,2119.9,2119.4,19.32706]
[1625131060452,9.0,2119.9,2119.4,12.2534]
[1625131061156,9.0,2119.9,2119.6,5.01]
[1625131061330,10.60958,2120.5,2119.7,26.5]
[1625131061405,30.7399,2120.8,2119.7,30.0361473]
[1625131061406,20.6159,2120.8,2119.7,30.0361473]
[1625131061502,9.9878,2120.8,2119.7,30.0361473]
[1625131061701,9.9878,2120.8,2120.5,0.98099999]
[1625131062003,3.61583,2121.1,2120.5,0.98099999]
[1625131062203,0.04,2120.7,2120.5,0.98099999]
[1625131062402,3.53583,2121.1,2120.5,0.98099999]
[1625131062504,7.07203,2120.8,2120.5,0.98099999]
[1625131063104,10.60801,2120.8,2120.5,0.98099999]
[1625131063305,3.53598,2120.8,2120.5,0.98099999]
[1625131063840,7.07247,2120.7,2120.5,0.98099999]
[1625131064942,21.69,2120.6,2120.5,0.98099999]
[1625131065147,21.69,2120.6,2119.5,10.1281]
[1625131065148,22.7,2120.5,2119.5,10.1281]
[1625131065247,22.7,2120.5,2119.4,19.6343]
[1625131065248,22.7,2120.5,2119.4,17.4307]
[1625131065344,22.7,2120.5,2118.9,7.43931299]
[1625131065345,22.7,2120.5,2119.1,21.181]
[1625131065445,22.7,2120.5,2119.3,5.01]
[1625131065543,5.01,2120.7,2119.3,5.01]
[1625131065892,5.30077893,2120.6,2119.3,5.01]
[1625131066087,5.01,2120.4,2119.3,7.49377852]
[1625131066193,5.01,2120.4,2119.3,14.56738852]
[1625131066290,10.34941116,2120.4,2119.4,5.01]
[1625131066390,3.53677,2120.2,2119.3,2.48377852]
[1625131066491,5.50923365,2120.1,2118.9,14.2034]
[1625131066593,10.78740915,2120.3,2118.5,15.38965211]
[1625131066691,5.01,2120.1,2118.5,10.8996]
[1625131066891,3.53789,2119.7,2118.5,10.8996]
[1625131066991,3.53789,2119.7,2118.8,10.3511]
[1625131067090,3.53789,2119.7,2118.5,10.8996]
[1625131067190,3.53789,2119.7,2118.4,13.00147852]
[1625131067392,3.53789,2119.7,2118.4,2.48377852]
[1625131067591,7.07645,2119.3,2118.5,9.43205]
[1625131067891,7.07645,2119.3,2118.4,2.48377852]
[1625131068120,4.28282977,2119.3,2118.4,2.48377852]
[1625131068927,13.19887707,2119.3,2118.4,2.48377852]
[1625131069024,13.23192785,2119.3,2118.3,10.0208]
[1625131069122,0.18,2119.2,2118.3,10.0208]
[1625131069226,0.18,2119.2,2118.2,6.85]
[1625131070022,3.5391,2118.9,2118.2,6.85]
[1625131070125,3.5391,2118.9,2117.9,10.6378]
[1625131070223,7.07812,2118.8,2117.9,7.07812]
[1625131070670,7.07812,2118.8,2118.0,0.98432519]
[1625131070973,7.07812,2118.8,2117.9,7.2742013]
[1625131071375,7.07812,2118.8,2117.9,9.75797982]
[1625131071781,0.9,2118.8,2117.9,2.72985982]
[1625131072181,0.9,2118.8,2117.9,22.72985982]